bitfinex/quotes_SOLUSD_20241218
["timestamp","ask_amount","ask_price","bid_price","bid_amount"]
[1734564059258,13.96875908,207.08,207.01,19.11112617]
[1734564059562,13.96875908,207.09,207.01,2.2149]
[1734564059725,0.90554984,207.08,207.03,13.96875908]
[1734564059922,0.90554984,207.08,207.02,14.09424908]
[1734564060276,0.90554984,207.08,206.96,2.2149]
[1734564060423,13.96875908,207.03,206.96,16.18365908]
[1734564060625,13.96875908,207.02,206.96,2.2149]
[1734564060927,13.96875908,207.04,206.96,2.2149]
[1734564061131,0.90554984,207.08,207.02,13.96875908]
[1734564061433,14.87431958,207.08,207.02,0.12549]
[1734564061857,14.87431958,207.08,207.01,13.96875908]
[1734564062060,0.9055605,207.08,207.02,13.96875908]
[1734564062258,0.90554909,207.13,207.06,13.96875908]
[1734564062557,0.9052803,207.12,207.04,23.776884]
[1734564062748,0.90544588,207.16,207.05,13.96875908]
[1734564063059,13.96875908,207.12,207.06,23.776884]
[1734564063247,13.96875908,207.14,207.08,23.776884]
[1734564063453,13.96875908,207.15,207.09,13.96875908]
[1734564063754,0.90524291,207.19,207.1,13.96875908]
[1734564063957,13.96875908,207.17,207.12,23.776884]
[1734564064153,13.96875908,207.18,207.12,37.74564308]
[1734564064465,13.96875908,207.18,207.12,23.776884]
[1734564064626,13.96875908,207.18,207.12,37.74564308]
[1734564065151,0.90509233,207.22,207.15,37.74564308]
[1734564065349,13.96875908,207.23,207.17,23.776884]
[1734564065555,13.96875908,207.24,207.17,37.74564308]
[1734564065732,13.96875908,207.24,207.18,13.96875908]
[1734564066059,13.96875908,207.24,207.17,37.74564308]
[1734564066246,13.96875908,207.25,207.19,23.776884]
[1734564066437,13.96875908,207.24,207.19,23.776884]
[1734564066641,13.96875908,207.24,207.18,23.776884]
[1734564066827,13.96875908,207.24,207.18,13.96875908]
[1734564067034,13.96875908,207.24,207.19,23.776884]
[1734564067335,13.96875908,207.27,207.21,13.96875908]
[1734564067546,13.96875908,207.28,207.22,13.96875908]
[1734564067957,13.96875908,207.25,207.18,13.96875908]
[1734564068162,13.96875908,207.22,207.18,23.776884]
[1734564068465,13.96875908,207.25,207.18,37.74564308]
[1734564068648,0.90483929,207.24,207.19,13.96875908]
[1734564068846,0.90483929,207.24,207.18,13.96875908]
[1734564069844,14.87359837,207.24,207.18,23.776884]
[1734564070044,14.87359837,207.24,207.18,13.96875908]
[1734564070666,13.96875908,207.26,207.21,23.776884]
[1734564070969,13.96875908,207.27,207.21,37.74564308]
[1734564072065,13.96875908,207.27,207.21,34.24564308]
[1734564072843,13.96875908,207.28,207.21,30.74564308]
[1734564073366,13.96875908,207.28,207.22,0.12549]
[1734564073568,6.6597,207.33,207.24,0.12549]
[1734564073781,13.96875908,207.33,207.27,13.96875908]
[1734564074161,7.56427434,207.38,207.29,13.96875908]
[1734564074383,7.56427434,207.38,207.3,13.96875908]
[1734564074384,13.96875908,207.37,207.3,13.96875908]
[1734564074585,13.96875908,207.4,207.34,13.96875908]
[1734564074795,14.56783628,207.41,207.34,13.96875908]
[1734564075084,13.96875908,207.4,207.34,13.96875908]
[1734564076443,13.96875908,207.38,207.32,13.96875908]
[1734564076752,0.5990772,207.41,207.25,2.0766]
[1734564076753,13.96875908,207.33,207.26,13.96875908]
[1734564077346,13.96875908,207.34,207.28,13.96875908]
[1734564077569,13.96875908,207.36,207.29,13.96875908]
[1734564077945,13.96875908,207.35,207.29,13.96875908]
[1734564078141,13.96875908,207.34,207.28,14.09424908]
[1734564078346,13.96875908,207.34,207.27,13.96875908]
[1734564078542,13.96875908,207.33,207.26,13.96875908]
[1734564078776,13.96875908,207.33,207.27,13.96875908]
[1734564079164,13.96875908,207.33,207.26,14.09424908]
[1734564079678,13.96875908,207.33,207.27,13.96875908]
[1734564080375,13.96875908,207.33,207.28,0.12549]
[1734564080704,13.96875908,207.34,207.28,13.96875908]
[1734564080881,13.96875908,207.36,207.29,13.96875908]
[1734564081184,13.96875908,207.35,207.28,13.96875908]
[1734564081386,13.96875908,207.34,207.28,13.96875908]
[1734564081688,0.90435755,207.39,207.26,13.96875908]
[1734564081689,13.96875908,207.33,207.26,13.96875908]
[1734564081889,13.96875908,207.32,207.26,13.96875908]
[1734564082067,13.96875908,207.34,207.27,13.96875908]
[1734564082765,13.96875908,207.33,207.27,13.96875908]
[1734564083257,13.96875908,207.32,207.25,16.04535908]
[1734564083459,13.96875908,207.33,207.26,13.96875908]
[1734564083779,13.96875908,207.34,207.27,13.96875908]
[1734564085984,13.96875908,207.35,207.28,13.96875908]
[1734564086187,13.96875908,207.34,207.28,13.96875908]
[1734564087169,13.96875908,207.35,207.28,13.96875908]
[1734564087967,13.96875908,207.34,207.27,13.96875908]
[1734564088285,13.96875908,207.28,207.22,13.96875908]
[1734564088458,14.87340042,207.27,207.2,16.13525908]
[1734564088657,13.96875908,207.23,207.16,13.96875908]
[1734564089057,13.96875908,207.2,207.15,2.1665]
[1734564089276,13.96875908,207.19,207.12,13.96875908]
[1734564089479,13.96875908,207.18,207.11,13.96875908]
[1734564089685,13.96875908,207.17,207.1,16.13525908]
[1734564089888,13.96875908,207.18,207.11,13.96875908]
[1734564090088,13.96875908,207.17,207.1,16.13525908]
[1734564090277,13.96875908,207.16,207.1,2.1665]
[1734564090469,13.96875908,207.11,207.02,0.72410931]
[1734564090669,13.96875908,207.07,207.04,30.0]
[1734564090875,13.96875908,207.06,207.04,30.0]
[1734564091071,13.96875908,207.06,206.99,13.96875908]
[1734564091274,2.0055403,207.12,206.93,10.37333121]
[1734564091275,13.96875908,207.07,207.0,13.96875908]
[1734564091470,13.96875908,207.09,207.02,13.96875908]
[1734564091989,0.9055403,207.12,206.94,12.80517082]
[1734564091990,13.96875908,207.1,207.03,13.96875908]
[1734564092368,13.96875908,207.11,207.05,0.12549]
[1734564092769,13.96875908,207.12,207.05,14.09424908]
[1734564092982,33.96875908,207.13,207.06,13.96875908]
[1734564093183,13.96875908,207.12,207.05,14.09424908]
[1734564093893,13.96875908,207.11,207.04,13.96875908]
[1734564094394,13.96875908,207.12,207.04,13.96875908]
[1734564094579,13.96875908,207.11,207.04,13.96875908]
[1734564095789,13.96875908,207.12,207.05,13.96875908]
[1734564096988,0.90530663,207.19,207.07,13.96875908]
[1734564096989,13.96875908,207.14,207.07,13.96875908]
[1734564097294,13.96875908,207.13,207.06,14.09424908]
[1734564097896,13.96875908,207.14,207.07,13.96875908]
[1734564099695,13.96875908,207.13,207.06,13.96875908]
[1734564099900,2.80718066,207.17,207.03,13.96875908]
[1734564099901,13.96875908,207.1,207.03,13.96875908]
[1734564100095,13.96875908,207.11,207.04,13.96875908]
[1734564100487,13.96875908,207.13,207.06,13.96875908]
[1734564100688,13.96875908,207.14,207.07,14.09424908]
[1734564102716,13.96875908,207.13,207.07,0.12549]
[1734564103254,13.96875908,207.16,207.08,13.96875908]
[1734564103382,13.96875908,207.16,207.09,13.96875908]
[1734564103577,13.96875908,207.18,207.11,13.96875908]
[1734564103777,13.96875908,207.19,207.12,13.96875908]
[1734564104005,13.96875908,207.18,207.11,13.96875908]
[1734564104205,13.96875908,207.17,207.11,13.96875908]
[1734564104414,13.96875908,207.16,207.1,0.12549]
[1734564105005,13.96875908,207.17,207.11,0.12549]
[1734564106809,13.96875908,207.18,207.11,13.96875908]
[1734564107220,3.96723741,207.22,207.09,14.09424908]
[1734564107412,13.96875908,207.15,207.08,13.96875908]
[1734564107584,24.68206809,207.21,207.08,13.96875908]
[1734564107585,13.96875908,207.16,207.08,13.96875908]
[1734564107789,13.96875908,207.16,207.09,13.96875908]
[1734564108011,13.96875908,207.18,207.11,13.96875908]
[1734564108799,14.87386294,207.18,207.11,13.96875908]
[1734564109720,13.96875908,207.18,207.11,13.96875908]
[1734564110222,0.90512566,207.17,207.11,13.96875908]
[1734564110525,13.96875908,207.19,207.12,13.96875908]
[1734564111100,13.96875908,207.19,207.13,13.96875908]
[1734564111414,13.96875908,207.18,207.12,13.96875908]
[1734564111619,13.96875908,207.18,207.11,13.96875908]
[1734564111823,0.90504785,207.2,207.12,13.96875908]
[1734564111824,13.96875908,207.19,207.12,13.96875908]
[1734564112122,13.96875908,207.18,207.11,13.96875908]
[1734564112304,13.96875908,207.16,207.05,0.72406017]
[1734564112506,13.96875908,207.16,207.09,13.96875908]
[1734564112701,13.96875908,207.18,207.11,13.96875908]
[1734564112912,13.96875908,207.18,207.1,0.12549]
[1734564112913,13.96875908,207.19,207.12,13.96875908]
[1734564113424,13.96875908,207.18,207.11,13.96875908]
[1734564113900,13.96875908,207.19,207.12,13.96875908]
[1734564114322,13.96875908,207.18,207.11,13.96875908]
[1734564114524,0.90519188,207.21,207.12,13.96875908]
[1734564114716,13.96875908,207.17,207.1,13.96875908]
[1734564114918,13.96875908,207.15,207.09,13.96875908]
[1734564115614,13.96875908,207.16,207.09,13.96875908]
[1734564116500,13.96875908,207.16,207.1,0.12549]
[1734564116710,14.8739225,207.19,207.12,13.96875908]
[1734564116900,13.96875908,207.15,207.08,13.96875908]
[1734564117100,13.96875908,207.13,207.06,13.96875908]
[1734564117307,1.96219749,207.22,207.03,2.1896]
[1734564117308,0.90533252,207.12,207.03,2.1896]
[1734564117516,0.90541974,207.16,207.03,2.1896]
[1734564117831,13.96875908,207.12,207.05,13.96875908]
[1734564118513,13.96875908,207.13,207.06,13.96875908]
[1734564118722,14.87413978,207.12,207.05,13.96875908]
[1734564119408,0.9053807,207.12,207.06,13.96875908]
[1734564119914,14.87413978,207.12,207.05,13.96875908]
[1734564120124,13.96875908,207.11,207.05,13.96875908]
[1734564120629,13.96875908,207.12,207.05,13.96875908]
[1734564121018,13.96875908,207.11,207.04,14.09424908]
[1734564121534,0.90539803,207.1,207.04,13.96875908]
[1734564121712,14.87415711,207.1,207.03,13.96875908]
[1734564121915,13.96875908,207.09,207.02,13.96875908]
[1734564122224,13.96875908,207.1,207.03,13.96875908]
[1734564122420,14.87425897,207.09,207.02,13.96875908]
[1734564122932,13.96875908,207.06,206.99,13.96875908]
[1734564123134,13.96875908,207.06,207.0,30.0]
[1734564123316,0.9056676,207.05,206.99,13.96875908]
[1734564123509,13.96875908,207.06,206.99,13.96875908]
[1734564123704,13.96875908,207.06,207.0,13.96875908]
[1734564124233,13.96875908,207.06,206.99,13.96875908]
[1734564126538,13.96875908,207.06,207.0,13.96875908]
[1734564127333,13.96875908,207.06,206.99,13.96875908]
[1734564127528,13.64196937,207.06,206.98,22.1013]
[1734564127854,14.87440563,207.05,206.98,13.96875908]
[1734564128139,13.96875908,207.04,206.98,13.96875908]
[1734564128620,13.96875908,207.05,206.98,13.96875908]
[1734564128819,0.90571919,207.04,206.98,13.96875908]
[1734564129021,0.90571919,207.04,206.99,13.96875908]
[1734564130939,13.96875908,207.05,206.98,13.96875908]
[1734564131105,13.96875908,207.03,206.98,0.12549]
[1734564132123,13.96875908,207.04,206.98,13.96875908]
[1734564132820,13.96875908,207.05,206.98,13.96875908]
[1734564133159,14.87448191,207.04,206.98,13.96875908]
[1734564134634,13.96875908,207.04,206.98,13.96875908]
[1734564135042,13.96875908,207.05,206.99,13.96875908]
[1734564135750,0.9057075,207.04,206.99,13.96875908]
[1734564135940,0.90571105,207.04,206.99,13.96875908]
[1734564136938,14.87447013,207.04,206.98,13.96875908]
[1734564138243,14.87447013,207.04,206.99,8.95963003]
[1734564138244,0.90571105,207.04,206.99,8.95963003]
[1734564138547,9.8653436,207.07,207.01,8.95963003]
[1734564139026,8.95963003,207.06,207.01,0.12549]
[1734564139329,8.95963003,207.05,207.01,0.12549]
[1734564139531,8.95963003,207.05,206.99,8.95963003]
[1734564139724,8.95963003,207.05,206.98,8.95963003]
[1734564139931,9.86533523,207.04,206.98,8.95963003]
[1734564140347,0.9057052,207.04,206.98,8.95963003]
[1734564140924,0.90571654,207.04,206.98,8.95963003]
[1734564141124,9.86534293,207.05,206.98,8.95963003]
[1734564141724,9.86534293,207.05,206.99,8.95963003]
[1734564142249,0.90571595,207.04,206.99,8.95963003]
[1734564143824,2.00571331,207.07,207.0,8.95963003]
[1734564144026,8.95963003,207.06,207.0,8.95963003]
[1734564144441,8.95963003,207.06,206.99,8.95963003]
[1734564144633,0.90565812,207.05,206.99,8.95963003]
[1734564145236,9.86528815,207.05,206.99,8.95963003]
[1734564146856,9.86528815,207.05,206.99,0.12549]
[1734564147948,9.86528815,207.05,206.99,8.95963003]
[1734564148737,8.95963003,207.03,206.93,22.0598]
[1734564149051,0.90581234,207.02,206.96,8.95963003]
[1734564150962,1.1,207.06,206.99,8.95963003]
[1734564150963,23.776884,207.05,206.99,8.95963003]
[1734564151254,0.90569043,207.04,206.99,8.95963003]
[1734564151551,9.86532046,207.04,206.98,8.95963003]
[1734564151751,8.95963003,207.03,206.97,0.12549]
[1734564152142,8.95963003,206.98,206.89,12.0834]
[1734564152340,8.95963003,206.92,206.87,7.50334851]
[1734564152548,8.95963003,206.91,206.87,7.50334851]
[1734564152955,8.95963003,206.92,206.87,7.50334851]
[1734564153155,8.95963003,206.91,206.87,7.50334851]
[1734564153346,8.95963003,206.89,206.87,7.50334851]
[1734564153552,0.90628241,206.9,206.8,8.95963003]
[1734564153553,20.0,206.9,206.8,8.95963003]
[1734564153748,8.95963003,206.88,206.81,8.95963003]
[1734564153953,14.02114419,206.89,206.82,14.02114419]
[1734564154155,34.02114419,206.9,206.83,14.02114419]
[1734564154355,34.02114419,206.9,206.85,30.0]
[1734564154555,1.1,206.91,206.85,44.02114419]
[1734564155037,1.1,206.91,206.86,14.02114419]
[1734564155238,14.02114419,206.92,206.87,0.12549]
[1734564155450,0.90624404,206.97,206.9,14.02114419]
[1734564155655,14.02114419,206.97,206.91,14.02114419]
[1734564155839,0.9060561,206.98,206.87,0.72495505]
[1734564155840,14.92720029,206.98,206.92,14.02114419]
[1734564156457,14.02114419,206.97,206.91,14.02114419]
[1734564156761,14.02114419,206.96,206.91,0.12549]
[1734564157556,14.92720029,206.98,206.91,14.02114419]
[1734564158058,14.02114419,206.97,206.91,14.02114419]
[1734564158263,14.92720029,206.98,206.91,14.02114419]
[1734564159333,14.02114419,206.97,206.91,14.02114419]
[1734564160844,14.92720029,206.98,206.91,14.02114419]
[1734564163294,0.9060271,206.99,206.94,14.02114419]
[1734564163445,20.14884419,207.04,206.98,14.02114419]
[1734564163645,14.02114419,207.06,207.0,14.02114419]
[1734564163857,14.92677975,207.07,207.01,14.02114419]
[1734564164050,14.02114419,207.06,207.0,14.02114419]
[1734564164240,14.02114419,207.06,206.99,14.02114419]
[1734564164648,0.90566843,207.05,206.99,14.02114419]
[1734564166238,14.02114419,207.03,206.97,14.02114419]
[1734564166563,14.02114419,207.01,206.95,14.02114419]
[1734564166744,14.02114419,207.01,206.94,14.02114419]
[1734564166944,14.02114419,207.01,206.95,14.02114419]
[1734564167271,14.02114419,207.0,206.94,0.12549]
[1734564168463,14.02114419,207.01,206.95,0.12549]
[1734564168671,14.02114419,207.03,206.96,14.02114419]
[1734564168869,14.9269911,207.02,206.95,14.14663419]
[1734564169668,0.90584691,207.02,206.95,14.14663419]
[1734564169973,6.1277,207.09,206.97,14.14663419]
[1734564169974,14.02114419,207.04,206.97,14.14663419]
[1734564170143,14.02114419,207.03,206.97,0.12549]
[1734564171272,14.02114419,207.05,206.98,14.14663419]
[1734564171489,14.02114419,207.06,207.0,14.02114419]
[1734564171889,14.02114419,207.07,207.01,14.14663419]
[1734564172173,14.02114419,207.06,207.01,0.12549]
[1734564172853,14.02114419,207.07,207.0,14.14663419]
[1734564173056,14.02114419,207.07,207.02,0.12549]
[1734564173874,14.02114419,207.08,207.03,0.12549]
[1734564174170,14.02114419,207.12,207.06,14.14663419]
[1734564174973,0.90532248,207.17,207.1,14.02114419]
[1734564175164,14.02114419,207.18,207.12,14.14663419]
[1734564175365,14.02114419,207.17,207.12,0.12549]
[1734564175777,14.02114419,207.18,207.12,0.12549]
[1734564176354,14.02114419,207.19,207.14,0.12549]
[1734564176571,14.02114419,207.2,207.14,14.14663419]
[1734564179382,14.02114419,207.19,207.14,0.12549]
[1734564181460,14.02114419,207.2,207.15,0.12549]
[1734564183489,14.02114419,207.2,207.14,14.02114419]
[1734564184484,14.02114419,207.21,207.15,14.14663419]
[1734564184687,14.02114419,207.23,207.17,14.02114419]
[1734564185188,14.02114419,207.19,207.13,14.02114419]
[1734564185889,14.02114419,207.2,207.14,0.12549]
[1734564186890,14.02114419,207.19,207.14,0.12549]
[1734564187404,0.90488797,207.22,207.16,0.12549]
[1734564187581,0.90501072,207.28,207.22,0.12549]
[1734564187765,14.02114419,207.32,207.25,14.02114419]
[1734564187961,20.03464419,207.34,207.27,14.02114419]
[1734564188167,0.90439518,207.34,207.28,14.02114419]
[1734564188362,14.02114419,207.33,207.27,14.02114419]
[1734564188561,14.02114419,207.33,207.26,14.02114419]
[1734564190228,14.02114419,207.28,207.21,14.02114419]
[1734564190512,14.02114419,207.25,207.2,2.0593]
[1734564191718,14.02114419,207.26,207.2,2.0593]
[1734564192385,14.02114419,207.28,207.21,14.02114419]
[1734564192585,0.90475967,207.29,207.21,14.02114419]
[1734564192899,14.02114419,207.28,207.2,16.08044419]
[1734564193101,14.9258769,207.27,207.2,14.02114419]
[1734564193400,14.02114419,207.23,207.16,14.02114419]
[1734564193589,14.02114419,207.21,207.15,2.1557]
[1734564193781,0.90498244,207.2,207.14,14.02114419]
[1734564193985,0.90498244,207.2,207.1,2.1557]
[1734564193986,14.92612663,207.2,207.13,14.02114419]
[1734564194518,14.02114419,207.18,207.11,14.02114419]
[1734564194720,14.92630312,207.17,207.1,16.17684419]
[1734564195014,14.02114419,207.16,207.1,2.1557]
[1734564195186,14.02114419,207.17,207.1,0.12549]
[1734564195511,14.02114419,207.12,207.05,2.1557]
[1734564195717,14.92659516,207.11,207.05,2.1557]
[1734564196117,14.02114419,207.11,207.05,2.1557]
[1734564197032,14.02114419,207.14,207.07,14.02114419]
[1734564197731,14.02114419,207.13,207.06,14.14663419]
[1734564198824,14.02114419,207.14,207.08,0.12549]
[1734564199031,14.92645886,207.19,207.12,14.02114419]
[1734564199216,14.02114419,207.19,207.12,14.02114419]
[1734564199402,14.02114419,207.2,207.13,14.02114419]
[1734564200198,14.02114419,207.23,207.16,14.14663419]
[1734564200418,0.90490545,207.26,207.2,14.02114419]
[1734564200728,14.02114419,207.26,207.19,14.02114419]
[1734564200893,14.02114419,207.26,207.2,14.02114419]
[1734564201395,14.02114419,207.28,207.21,14.02114419]
[1734564201824,14.02114419,207.29,207.22,14.02114419]
[1734564202916,14.02114419,207.28,207.21,14.02114419]
[1734564203217,14.02114419,207.29,207.22,14.14663419]
[1734564203419,20.04544419,207.33,207.26,14.14663419]
[1734564203624,14.02114419,207.33,207.26,14.14663419]
[1734564203842,14.02114419,207.32,207.26,0.12549]
[1734564204001,14.02114419,207.3,207.23,34.02114419]
[1734564204208,1.1,207.33,207.21,20.0]
[1734564204522,14.92575934,207.32,207.25,14.02114419]
[1734564204728,14.02114419,207.32,207.26,0.12549]
[1734564204920,14.02114419,207.28,207.21,34.02114419]
[1734564205124,14.02114419,207.27,207.21,20.0]
[1734564205306,14.02114419,207.29,207.22,14.02114419]
[1734564205711,0.90460161,207.34,207.25,14.14663419]
[1734564205918,2.00444496,207.37,207.28,14.02114419]
[1734564206123,14.02114419,207.34,207.27,14.02114419]
[1734564206921,14.02114419,207.33,207.27,0.12549]
[1734564208245,14.02114419,207.36,207.29,14.14663419]
[1734564208911,14.02114419,207.37,207.3,14.02114419]
[1734564209111,14.02114419,207.36,207.3,0.12549]
[1734564209609,0.90424863,207.37,207.36,20.12549]
[1734564209817,0.5990772,207.41,207.4,20.12549]
[1734564210147,14.02114419,207.55,207.41,0.12549]
[1734564210308,14.02114419,207.55,207.48,14.02114419]
[1734564210505,0.90347403,207.54,207.4,20.0]
[1734564210711,14.02114419,207.5,207.42,14.02114419]
[1734564211014,14.02114419,207.51,207.44,14.02114419]
[1734564211227,15.12114419,207.53,207.46,14.14663419]
[1734564211533,14.02114419,207.54,207.47,14.02114419]
[1734564211725,14.02114419,207.53,207.46,14.02114419]
[1734564212226,22.29518815,207.53,207.46,22.29518815]
[1734564212552,23.39518815,207.52,207.43,0.72284464]
[1734564212846,23.776884,207.43,207.34,22.29518815]
[1734564213015,22.29518815,207.41,207.34,22.29518815]
[1734564215550,0.90412106,207.42,207.35,22.29518815]
[1734564215716,22.29518815,207.36,207.22,14.2716]
[1734564215910,23.776884,207.34,207.28,22.29518815]
[1734564216412,1.1,207.38,207.31,22.29518815]
[1734564216413,22.29518815,207.38,207.31,22.29518815]
[1734564216618,22.29518815,207.39,207.32,22.29518815]
[1734564216818,1.1,207.43,207.36,22.29518815]
[1734564217019,22.29518815,207.45,207.38,22.29518815]
[1734564217229,22.29518815,207.46,207.39,22.29518815]
[1734564217523,23.19918938,207.47,207.4,22.29518815]
[1734564218046,22.29518815,207.46,207.39,22.29518815]
[1734564218339,22.29518815,207.46,207.38,22.29518815]
[1734564219055,22.29518815,207.45,207.38,22.29518815]
[1734564219636,0.90392287,207.47,207.41,22.29518815]
[1734564219843,22.29518815,207.49,207.42,22.29518815]
[1734564220042,1.1,207.53,207.4,22.29518815]
[1734564220043,22.29518815,207.47,207.4,22.29518815]
[1734564220234,22.29518815,207.45,207.38,22.29518815]
[1734564220435,22.29518815,207.46,207.38,22.29518815]
[1734564221374,22.29518815,207.45,207.38,22.29518815]
[1734564221573,1.1,207.43,207.37,22.29518815]
[1734564221859,22.29518815,207.38,207.27,22.29518815]
[1734564222061,22.29518815,207.34,207.27,22.29518815]
[1734564222359,22.29518815,207.36,207.28,22.29518815]
[1734564222565,23.19957979,207.35,207.28,22.29518815]
[1734564222962,22.29518815,207.37,207.29,22.29518815]
[1734564223161,0.90432157,207.38,207.32,0.12549]
[1734564223393,22.29518815,207.42,207.35,22.29518815]
[1734564223842,23.19923821,207.41,207.34,22.29518815]
[1734564224034,23.19923821,207.41,207.33,22.29518815]
[1734564224235,22.29518815,207.41,207.34,22.29518815]
[1734564226273,2.00410751,207.45,207.31,0.72326144]
[1734564226274,22.29518815,207.38,207.31,22.29518815]
[1734564226572,22.29518815,207.38,207.3,22.29518815]
[1734564226875,22.29518815,207.4,207.32,22.29518815]
[1734564227179,22.29518815,207.4,207.33,22.29518815]
[1734564227388,22.29518815,207.41,207.34,22.29518815]
[1734564227855,22.29518815,207.42,207.35,22.29518815]
[1734564228057,22.29518815,207.41,207.34,22.29518815]
[1734564228280,22.29518815,207.4,207.33,22.29518815]
[1734564228590,21.79518815,207.4,207.33,22.29518815]
[1734564228888,21.79518815,207.4,207.3,0.12549]
[1734564228889,23.19931014,207.39,207.32,22.29518815]
[1734564229250,23.19931014,207.39,207.31,22.29518815]
[1734564229448,22.29518815,207.37,207.3,22.29518815]
[1734564231575,22.29518815,207.38,207.31,22.29518815]
[1734564231779,22.29518815,207.39,207.32,22.29518815]
[1734564232185,22.29518815,207.4,207.33,22.29518815]
[1734564232670,22.29518815,207.41,207.34,22.29518815]
[1734564232866,22.29518815,207.43,207.31,12.059]
[1734564233048,22.29518815,207.45,207.38,22.29518815]
[1734564233890,22.29518815,207.44,207.37,22.29518815]
[1734564234254,22.29518815,207.45,207.38,22.42067815]
[1734564235077,23.19902934,207.44,207.36,24.50248815]
[1734564235780,23.19902934,207.44,207.37,22.29518815]
[1734564236075,13.94603103,207.44,207.37,13.94603103]
[1734564236453,13.94603103,207.44,207.36,2.2073]
[1734564236454,13.94603103,207.4,207.29,12.0602]
[1734564236678,13.94603103,207.39,207.32,13.94603103]
[1734564236851,13.94603103,207.4,207.33,0.12549]
[1734564237051,13.94603103,207.41,207.33,14.07152103]
[1734564237494,13.94603103,207.38,207.31,13.94603103]
[1734564237655,13.94603103,207.39,207.31,13.94603103]
[1734564238060,22.32410487,207.4,207.32,22.32410487]
[1734564238393,0.90416208,207.39,207.33,22.32410487]
[1734564239065,22.32410487,207.4,207.33,22.32410487]
[1734564240780,22.32410487,207.4,207.32,20.0]
[1734564240982,22.32410487,207.38,207.31,22.32410487]
[1734564241279,22.32410487,207.36,207.29,42.32410487]
[1734564241481,22.32410487,207.34,207.27,24.53140487]
[1734564241684,22.32410487,207.32,207.25,22.32410487]
[1734564241983,0.90454027,207.31,207.23,22.32410487]
[1734564242276,22.32410487,207.3,207.22,24.53140487]
[1734564242975,22.32410487,207.29,207.22,24.53140487]
[1734564243783,22.32410487,207.24,207.17,24.41420487]
[1734564243981,23.22893135,207.23,207.17,2.0901]
[1734564244170,22.32410487,207.22,207.17,2.0901]
[1734564244776,22.32410487,207.26,207.18,22.32410487]
[1734564245079,22.32410487,207.22,207.14,22.32410487]
[1734564245259,22.32410487,207.2,207.13,22.32410487]
[1734564245588,22.32410487,207.14,207.03,22.32410487]
[1734564245792,22.32410487,207.1,207.03,22.32410487]
[1734564245981,0.90538673,207.09,207.03,22.32410487]
[1734564246576,22.32410487,207.08,207.01,22.32410487]
[1734564246898,0.90553607,207.07,207.0,2.0901]
[1734564247092,22.32410487,207.06,206.99,22.32410487]
[1734564247296,0.90565046,207.05,206.94,8.5966]
[1734564247463,22.32410487,207.06,206.97,22.32410487]
[1734564248105,22.32410487,207.11,207.03,22.32410487]
[1734564248393,23.22952188,207.1,207.03,22.32410487]
[1734564248684,22.32410487,207.08,207.0,22.32410487]
[1734564249268,22.32410487,207.09,207.01,22.32410487]
[1734564249481,23.22965326,207.08,207.0,22.32410487]
[1734564250011,22.32410487,207.07,207.0,22.32410487]
[1734564250372,22.32410487,207.07,206.99,22.32410487]
[1734564250885,0.90560753,207.06,206.99,22.32410487]
[1734564251593,22.32410487,207.01,206.94,2.0901]
[1734564251800,23.776884,207.04,206.94,2.0901]
[1734564251801,22.32410487,207.0,206.94,2.0901]
[1734564252315,22.32410487,206.99,206.94,2.0901]
[1734564252522,22.32410487,206.99,206.93,0.12549]
[1734564252811,22.32410487,207.0,206.93,0.12549]
[1734564252972,22.32410487,207.01,206.94,0.12549]
[1734564253172,23.22995133,207.0,206.94,0.12549]
[1734564253478,22.32410487,206.99,206.94,0.12549]
[1734564253695,22.32410487,206.99,206.92,22.32410487]
[1734564254306,22.32410487,206.99,206.93,0.12549]
[1734564254685,22.32410487,206.99,206.92,22.32410487]
[1734564254885,22.32410487,206.99,206.91,22.32410487]
[1734564255293,22.32410487,206.98,206.91,22.32410487]
[1734564255498,22.32410487,206.97,206.89,42.92318207]
[1734564256383,0.90603571,206.96,206.89,42.92318207]
[1734564256702,0.90603571,206.96,206.9,0.12549]
[1734564256875,0.90605134,206.96,206.9,0.12549]
[1734564257077,22.32410487,206.97,206.9,0.12549]
[1734564257785,22.32410487,206.99,206.92,0.12549]
[1734564258198,23.23006965,207.03,206.96,0.12549]
[1734564258379,22.32410487,207.04,206.97,22.32410487]
[1734564258800,22.32410487,207.03,206.97,0.12549]
[1734564260689,22.32410487,207.02,206.96,0.12549]
[1734564261188,22.32410487,207.03,206.96,334.44959487]
[1734564264323,22.32410487,206.99,206.89,0.5990772]
[1734564264493,22.32410487,206.97,206.89,22.92318207]
[1734564264693,22.32410487,206.97,206.92,20.0]
[1734564264897,22.32410487,207.0,206.92,22.32410487]
[1734564265310,22.32410487,207.0,206.93,22.44959487]
[1734564266022,22.32410487,207.0,206.93,0.12549]
[1734564266516,22.32410487,207.0,206.94,0.12549]
[1734564266812,22.32410487,207.03,206.96,22.32410487]
[1734564267119,22.32410487,207.03,206.97,0.12549]
[1734564267615,22.32410487,207.02,206.96,0.12549]
[1734564267801,22.32410487,207.01,206.96,0.12549]